[Event "*** Titled Tuesday Blitz"]
[Site "Chess.com"]
[Date "2021.04.20"]
[Round "10"]
[White "Kostukov_Alex"]
[Black "BL4D3RUNN3R"]
[Result "1-0"]
[WhiteElo "2320"]
[BlackElo "2111"]
[TimeControl "180+1"]
[EndTime "11:54:22 PDT"]
[Termination "Kostukov_Alex won on time"]

1. e4 {[%clk 0:03:00.9]} 1... c6 {[%clk 0:02:45]} 2. g3 {[%clk 0:02:59.9]} 2...
d5 {[%clk 0:02:41.5]} 3. d3 {[%clk 0:03:00.2]} 3... dxe4 {[%clk 0:02:38.8]} 4.
dxe4 {[%clk 0:03:01.1]} 4... Qxd1+ {[%clk 0:02:37.3]} 5. Kxd1 {[%clk 0:03:02]}
5... Nd7 {[%clk 0:02:27.8]} 6. Be3 {[%clk 0:02:51.4]} 6... e5 {[%clk 0:02:25.6]}
7. Nd2 {[%clk 0:02:50.7]} 7... Bc5 {[%clk 0:02:23.8]} 8. Bxc5 {[%clk 0:02:45.9]}
8... Nxc5 {[%clk 0:02:22.7]} 9. f3 {[%clk 0:02:45.6]} 9... Be6 {[%clk
0:02:09.5]} 10. Bh3 {[%clk 0:02:45.5]} 10... Rd8 {[%clk 0:01:53.9]} 11. Ke2
{[%clk 0:02:38.3]} 11... Nf6 {[%clk 0:01:36.5]} 12. Bxe6 {[%clk 0:02:37.6]}
12... Nxe6 {[%clk 0:01:35.5]} 13. c3 {[%clk 0:02:37.9]} 13... Nd7 {[%clk
0:01:27.7]} 14. Nh3 {[%clk 0:02:36.5]} 14... Ndc5 {[%clk 0:01:25.4]} 15. Nf2
{[%clk 0:02:36.5]} 15... Na4 {[%clk 0:01:21.9]} 16. Rab1 {[%clk 0:02:34.2]}
16... Ke7 {[%clk 0:01:18.5]} 17. Nc4 {[%clk 0:02:32.7]} 17... f6 {[%clk
0:01:13.5]} 18. Rhd1 {[%clk 0:02:28.1]} 18... Rxd1 {[%clk 0:00:56.1]} 19. Nxd1
{[%clk 0:02:28]} 19... Rd8 {[%clk 0:00:52.5]} 20. b3 {[%clk 0:02:18.9]} 20...
Rxd1 {[%clk 0:00:43.9]} 21. Rxd1 {[%clk 0:02:06.2]} 21... Nxc3+ {[%clk
0:00:42.5]} 22. Kd2 {[%clk 0:02:07.1]} 22... Nxd1 {[%clk 0:00:41.6]} 23. Kxd1
{[%clk 0:02:08]} 23... Nc5 {[%clk 0:00:32.3]} 24. b4 {[%clk 0:02:00.9]} 24...
Ne6 {[%clk 0:00:28.9]} 25. Na5 {[%clk 0:02:00.8]} 25... Nd8 {[%clk 0:00:27.4]}
26. Ke2 {[%clk 0:02:00.7]} 26... Kd6 {[%clk 0:00:26.8]} 27. Kd3 {[%clk
0:01:59.1]} 27... b6 {[%clk 0:00:24.8]} 28. Nc4+ {[%clk 0:01:58.9]} 28... Ke6
{[%clk 0:00:23.9]} 29. f4 {[%clk 0:01:57.5]} 29... g6 {[%clk 0:00:21.1]} 30. a4
{[%clk 0:01:54.1]} 30... Nb7 {[%clk 0:00:19.7]} 31. fxe5 {[%clk 0:01:50.2]}
31... fxe5 {[%clk 0:00:18.6]} 32. Nd2 {[%clk 0:01:50.6]} 32... c5 {[%clk
0:00:15.5]} 33. Kc4 {[%clk 0:01:44.6]} 33... cxb4 {[%clk 0:00:14.7]} 34. Kxb4
{[%clk 0:01:45.5]} 34... a6 {[%clk 0:00:13]} 35. Nc4 {[%clk 0:01:39.4]} 35...
Nc5 {[%clk 0:00:11.6]} 36. Nd2 {[%clk 0:01:30.7]} 36... Kd6 {[%clk 0:00:09.3]}
37. Nc4+ {[%clk 0:01:29.8]} 37... Ke6 {[%clk 0:00:04.3]} 38. Nd2 {[%clk
0:01:29.8]} 38... Nd3+ {[%clk 0:00:03.4]} 39. Kc4 {[%clk 0:01:28.9]} 39... Nf2
{[%clk 0:00:02.6]} 40. Kb4 {[%clk 0:01:22]} 40... Ng4 {[%clk 0:00:02.5]} 41. h4
{[%clk 0:01:21.2]} 41... Nf6 {[%clk 0:00:01.7]} 42. a5 {[%clk 0:01:19.5]} 1-0

[Event "*** Titled Tuesday Blitz"]
[Site "Chess.com"]
[Date "2021.04.20"]
[Round "10"]
[White "northridgehawk"]
[Black "djano"]
[Result "0-1"]
[WhiteElo "2320"]
[BlackElo "2463"]
[TimeControl "180+1"]
[EndTime "11:54:28 PDT"]
[Termination "djano won by resignation"]

1. e4 {[%clk 0:02:50.9]} 1... c6 {[%clk 0:03:00.1]} 2. d4 {[%clk 0:02:50.6]}
2... d5 {[%clk 0:03:00.5]} 3. Nc3 {[%clk 0:02:50.9]} 3... dxe4 {[%clk
0:03:00.4]} 4. Nxe4 {[%clk 0:02:51.8]} 4... Nf6 {[%clk 0:03:01]} 5. Nxf6+ {[%clk
0:02:49.7]} 5... exf6 {[%clk 0:03:01.9]} 6. Nf3 {[%clk 0:02:50]} 6... Bd6 {[%clk
0:03:01.9]} 7. Bd3 {[%clk 0:02:49.9]} 7... O-O {[%clk 0:03:01.8]} 8. O-O {[%clk
0:02:50.1]} 8... Bg4 {[%clk 0:02:59.5]} 9. c3 {[%clk 0:02:46.5]} 9... Nd7 {[%clk
0:02:54.2]} 10. Re1 {[%clk 0:02:18.9]} 10... Qc7 {[%clk 0:02:46.6]} 11. h3
{[%clk 0:02:17.1]} 11... Bh5 {[%clk 0:02:45.8]} 12. Qc2 {[%clk 0:02:13.5]} 12...
Bxf3 {[%clk 0:02:42.2]} 13. gxf3 {[%clk 0:02:14.4]} 13... g6 {[%clk 0:02:40.5]}
14. Kg2 {[%clk 0:02:13.7]} 14... f5 {[%clk 0:02:37]} 15. Bh6 {[%clk 0:02:09.8]}
15... Rfe8 {[%clk 0:02:34.5]} 16. Bxf5 {[%clk 0:01:54.6]} 16... Nf6 {[%clk
0:02:20.8]} 17. Bg4 {[%clk 0:01:37.2]} 17... Bf4 {[%clk 0:02:19]} 18. Bxf4
{[%clk 0:01:34.1]} 18... Qxf4 {[%clk 0:02:19.9]} 19. h4 {[%clk 0:01:22.6]} 19...
Nxg4 {[%clk 0:02:13.9]} 20. fxg4 {[%clk 0:01:20.7]} 20... Qxg4+ {[%clk
0:02:14.8]} 21. Kh2 {[%clk 0:01:21.2]} 21... Qxh4+ {[%clk 0:02:13.1]} 22. Kg2
{[%clk 0:01:21.6]} 22... Qg4+ {[%clk 0:02:09.1]} 23. Kh2 {[%clk 0:01:20.2]}
23... Qf3 {[%clk 0:02:03.1]} 24. Qd2 {[%clk 0:01:10.9]} 24... Kg7 {[%clk
0:01:51.4]} 25. Rxe8 {[%clk 0:01:06]} 25... Rxe8 {[%clk 0:01:50.2]} 26. Re1
{[%clk 0:01:06.9]} 26... Re4 {[%clk 0:01:33]} 27. Rxe4 {[%clk 0:00:52.9]} 27...
Qxe4 {[%clk 0:01:33.9]} 28. Kg3 {[%clk 0:00:53]} 28... h5 {[%clk 0:01:33.5]} 29.
f3 {[%clk 0:00:44]} 29... Qe6 {[%clk 0:01:32.1]} 30. b3 {[%clk 0:00:39.6]} 30...
b5 {[%clk 0:01:29.9]} 31. Qd3 {[%clk 0:00:33.6]} 31... Qd6+ {[%clk 0:01:25.3]}
32. Kg2 {[%clk 0:00:28.7]} 32... Qf4 {[%clk 0:01:23.6]} 33. Qe2 {[%clk
0:00:23.3]} 33... h4 {[%clk 0:01:19.8]} 34. Qe1 {[%clk 0:00:22.7]} 34... g5
{[%clk 0:01:16.2]} 35. Qf2 {[%clk 0:00:19.3]} 35... g4 {[%clk 0:01:04.8]} 36.
fxg4 {[%clk 0:00:16.8]} 36... Qxg4+ {[%clk 0:01:05]} 37. Kf1 {[%clk 0:00:16.6]}
37... h3 {[%clk 0:01:02.1]} 38. c4 {[%clk 0:00:15.4]} 38... Qd1+ {[%clk
0:01:00.1]} 39. Qe1 {[%clk 0:00:14.5]} 39... Qxe1+ {[%clk 0:01:00.4]} 40. Kxe1
{[%clk 0:00:14.5]} 40... h2 {[%clk 0:01:01.2]} 41. Kd2 {[%clk 0:00:13.8]} 41...
h1=Q {[%clk 0:01:02.1]} 42. Kc3 {[%clk 0:00:14.1]} 42... Qe1+ {[%clk 0:01:01.2]}
0-1

[Event "*** Titled Tuesday Blitz"]
[Site "Chess.com"]
[Date "2021.04.20"]
[Round "10"]
[White "eldur16"]
[Black "Igor_Lysyj"]
[Result "0-1"]
[WhiteElo "2611"]
[BlackElo "2776"]
[TimeControl "180+1"]
[EndTime "11:54:30 PDT"]
[Termination "Igor_Lysyj won by resignation"]

1. d4 {[%clk 0:03:00.9]} 1... d5 {[%clk 0:02:57.8]} 2. c4 {[%clk 0:03:00.9]}
2... e6 {[%clk 0:02:57.6]} 3. Nf3 {[%clk 0:02:59.7]} 3... dxc4 {[%clk
0:02:57.2]} 4. e3 {[%clk 0:02:58.8]} 4... Nf6 {[%clk 0:02:55.8]} 5. Bxc4 {[%clk
0:02:57.8]} 5... c5 {[%clk 0:02:55.8]} 6. O-O {[%clk 0:02:57.7]} 6... cxd4
{[%clk 0:02:56]} 7. exd4 {[%clk 0:02:57.2]} 7... Be7 {[%clk 0:02:55.8]} 8. Nc3
{[%clk 0:02:56.5]} 8... O-O {[%clk 0:02:55.7]} 9. Bg5 {[%clk 0:02:55.4]} 9...
Nc6 {[%clk 0:02:51.8]} 10. Re1 {[%clk 0:02:55.3]} 10... h6 {[%clk 0:02:51.5]}
11. Bh4 {[%clk 0:02:52.4]} 11... Nh5 {[%clk 0:02:51.3]} 12. Bg3 {[%clk
0:02:47.9]} 12... Nxg3 {[%clk 0:02:49.7]} 13. hxg3 {[%clk 0:02:47.6]} 13... Bf6
{[%clk 0:02:49.9]} 14. Ne2 {[%clk 0:02:47.4]} 14... Qb6 {[%clk 0:02:46.3]} 15.
Qd3 {[%clk 0:02:31.8]} 15... Rd8 {[%clk 0:02:43.5]} 16. Rad1 {[%clk 0:02:24.6]}
16... Bd7 {[%clk 0:02:26.8]} 17. Qe4 {[%clk 0:02:12.8]} 17... Ne7 {[%clk
0:02:15.9]} 18. Bd3 {[%clk 0:02:07.7]} 18... Ng6 {[%clk 0:02:10.3]} 19. b3
{[%clk 0:01:50.7]} 19... Bc6 {[%clk 0:02:09.6]} 20. Qg4 {[%clk 0:01:49.8]} 20...
Nf8 {[%clk 0:02:04.5]} 21. Ne5 {[%clk 0:01:44.1]} 21... Be8 {[%clk 0:01:50.4]}
22. Bc4 {[%clk 0:01:30.7]} 22... Rd6 {[%clk 0:01:41]} 23. Nf4 {[%clk 0:01:05.6]}
23... Rxd4 {[%clk 0:01:37.1]} 24. Rxd4 {[%clk 0:01:03.7]} 24... Qxd4 {[%clk
0:01:36.5]} 25. Nf3 {[%clk 0:01:03.8]} 25... Qc3 {[%clk 0:01:30.1]} 26. Nh5
{[%clk 0:01:03.5]} 26... Rd8 {[%clk 0:01:18.2]} 27. Kh2 {[%clk 0:00:55.8]} 27...
Ng6 {[%clk 0:00:56.3]} 28. Rxe6 {[%clk 0:00:50.9]} 28... Bd7 {[%clk 0:00:46.3]}
29. Nxf6+ {[%clk 0:00:43.5]} 29... gxf6 {[%clk 0:00:43.8]} 30. Re8+ {[%clk
0:00:19.9]} 30... Kg7 {[%clk 0:00:36.2]} 0-1

[Event "*** Titled Tuesday Blitz"]
[Site "Chess.com"]
[Date "2021.04.20"]
[Round "10"]
[White "energie73"]
[Black "NoboaKevin1999"]
[Result "1-0"]
[WhiteElo "2367"]
[BlackElo "2449"]
[TimeControl "180+1"]
[EndTime "11:54:34 PDT"]
[Termination "energie73 won on time"]

1. d4 {[%clk 0:03:00.9]} 1... Nf6 {[%clk 0:02:59.8]} 2. Bf4 {[%clk 0:03:00.4]}
2... g6 {[%clk 0:02:56.8]} 3. e3 {[%clk 0:02:59.2]} 3... Bg7 {[%clk 0:02:56.4]}
4. Nf3 {[%clk 0:02:59.5]} 4... d6 {[%clk 0:02:56.4]} 5. h3 {[%clk 0:02:59.8]}
5... O-O {[%clk 0:02:56.7]} 6. Be2 {[%clk 0:02:59.3]} 6... Nc6 {[%clk
0:02:57.1]} 7. O-O {[%clk 0:02:59]} 7... Nd7 {[%clk 0:02:57.6]} 8. Bh2 {[%clk
0:02:58.2]} 8... e5 {[%clk 0:02:57.5]} 9. c3 {[%clk 0:02:57.6]} 9... h6 {[%clk
0:02:56.8]} 10. a4 {[%clk 0:02:56.1]} 10... f5 {[%clk 0:02:56.7]} 11. a5 {[%clk
0:02:56]} 11... a6 {[%clk 0:02:56.2]} 12. b4 {[%clk 0:02:50.7]} 12... f4 {[%clk
0:02:55.1]} 13. Bd3 {[%clk 0:02:43.3]} 13... g5 {[%clk 0:02:46.7]} 14. Bc2
{[%clk 0:02:19.5]} 14... Nf6 {[%clk 0:02:42.9]} 15. Nbd2 {[%clk 0:02:18.3]}
15... g4 {[%clk 0:02:35.5]} 16. hxg4 {[%clk 0:02:11.4]} 16... Nxg4 {[%clk
0:02:34.4]} 17. exf4 {[%clk 0:02:05.2]} 17... Nxh2 {[%clk 0:02:32]} 18. Kxh2
{[%clk 0:02:02.6]} 18... Rxf4 {[%clk 0:02:24.8]} 19. dxe5 {[%clk 0:02:01.3]}
19... Nxe5 {[%clk 0:02:16.7]} 20. g3 {[%clk 0:01:58.1]} 20... Rxf3 {[%clk
0:01:42.9]} 21. Nxf3 {[%clk 0:01:54.4]} 21... Bg4 {[%clk 0:01:37.8]} 22. Qd5+
{[%clk 0:01:54]} 22... Kh8 {[%clk 0:01:29.6]} 23. Nxe5 {[%clk 0:01:51.6]} 23...
Bxe5 {[%clk 0:01:27.6]} 24. Qe4 {[%clk 0:01:50.5]} 24... Qg8 {[%clk 0:01:15]}
25. Kg2 {[%clk 0:01:40.3]} 25... Rf8 {[%clk 0:01:13.9]} 26. f4 {[%clk
0:01:39.9]} 26... Bf5 {[%clk 0:01:11.5]} 27. Qe2 {[%clk 0:01:30.1]} 27... Bxc3
{[%clk 0:01:06.6]} 28. Ra3 {[%clk 0:01:19.6]} 28... Bxb4 {[%clk 0:00:54.8]} 29.
Re3 {[%clk 0:01:14.7]} 29... Bc5 {[%clk 0:00:49.9]} 30. Re7 {[%clk 0:01:12.8]}
30... Qd5+ {[%clk 0:00:42.9]} 31. Kh2 {[%clk 0:01:09.8]} 31... Rg8 {[%clk
0:00:17.2]} 32. Rd1 {[%clk 0:01:03.3]} 32... Qa2 {[%clk 0:00:07.7]} 33. Rd2
{[%clk 0:00:56.5]} 33... Bxc2 {[%clk 0:00:07.2]} 34. Qh5 {[%clk 0:00:48.9]} 1-0

[Event "*** Titled Tuesday Blitz"]
[Site "Chess.com"]
[Date "2021.04.20"]
[Round "10"]
[White "martinique24"]
[Black "TeukkaSalama"]
[Result "1-0"]
[WhiteElo "2484"]
[BlackElo "2382"]
[TimeControl "180+1"]
[EndTime "11:54:38 PDT"]
[Termination "martinique24 won by resignation"]

1. e4 {[%clk 0:02:53.2]} 1... c6 {[%clk 0:03:00.1]} 2. d4 {[%clk 0:02:51.8]}
2... d5 {[%clk 0:03:00.6]} 3. Nd2 {[%clk 0:02:51.9]} 3... dxe4 {[%clk
0:03:00.2]} 4. Nxe4 {[%clk 0:02:52.8]} 4... Nf6 {[%clk 0:03:00.7]} 5. Nxf6+
{[%clk 0:02:50.9]} 5... exf6 {[%clk 0:03:01.6]} 6. c3 {[%clk 0:02:48.1]} 6...
Bd6 {[%clk 0:03:00.9]} 7. Bd3 {[%clk 0:02:47.7]} 7... O-O {[%clk 0:02:59.1]} 8.
Qc2 {[%clk 0:02:44.1]} 8... Re8+ {[%clk 0:02:58.9]} 9. Ne2 {[%clk 0:02:44.4]}
9... h5 {[%clk 0:02:59.5]} 10. O-O {[%clk 0:02:29.6]} 10... Nd7 {[%clk
0:02:59.6]} 11. Qd1 {[%clk 0:02:28]} 11... Nf8 {[%clk 0:02:55.7]} 12. Nf4 {[%clk
0:02:05.8]} 12... h4 {[%clk 0:02:51]} 13. Qh5 {[%clk 0:01:55.3]} 13... Bxf4
{[%clk 0:02:50.3]} 14. Bxf4 {[%clk 0:01:54.3]} 14... h3 {[%clk 0:02:50.2]} 15.
gxh3 {[%clk 0:01:47.4]} 15... Be6 {[%clk 0:02:39.7]} 16. Kh1 {[%clk 0:01:43.7]}
16... Qd5+ {[%clk 0:02:09.7]} 17. Qxd5 {[%clk 0:01:40.4]} 17... Bxd5+ {[%clk
0:02:10.6]} 18. f3 {[%clk 0:01:39.4]} 18... b5 {[%clk 0:01:51.5]} 19. Kg2 {[%clk
0:01:24.3]} 19... Re6 {[%clk 0:01:50.6]} 20. Rfe1 {[%clk 0:01:19.3]} 20... Rae8
{[%clk 0:01:50.2]} 21. Rxe6 {[%clk 0:01:13.6]} 21... Rxe6 {[%clk 0:01:48.4]} 22.
b3 {[%clk 0:01:13.7]} 22... g5 {[%clk 0:01:41.8]} 23. Bd2 {[%clk 0:01:06.7]}
23... Ng6 {[%clk 0:01:39.8]} 24. Kg3 {[%clk 0:01:06]} 24... Nh4 {[%clk 0:01:04]}
25. Rf1 {[%clk 0:00:58.8]} 25... Rd6 {[%clk 0:00:44]} 26. f4 {[%clk 0:00:53]}
26... b4 {[%clk 0:00:24.8]} 27. fxg5 {[%clk 0:00:41.9]} 27... bxc3 {[%clk
0:00:18.6]} 28. Bf4 {[%clk 0:00:41]} 28... Bg2 {[%clk 0:00:09]} 29. Bxd6 {[%clk
0:00:36.4]} 29... Nf5+ {[%clk 0:00:04.6]} 30. Rxf5 {[%clk 0:00:35.5]} 1-0

[Event "*** Titled Tuesday Blitz"]
[Site "Chess.com"]
[Date "2021.04.20"]
[Round "10"]
[White "Piotrek1979"]
[Black "DamianoLew95"]
[Result "0-1"]
[WhiteElo "2412"]
[BlackElo "2520"]
[TimeControl "180+1"]
[EndTime "11:54:41 PDT"]
[Termination "DamianoLew95 won by resignation"]

1. Nf3 {[%clk 0:03:00.9]} 1... d5 {[%clk 0:02:59.2]} 2. c4 {[%clk 0:02:59.7]}
2... c6 {[%clk 0:02:58.8]} 3. b3 {[%clk 0:02:57.1]} 3... Nf6 {[%clk 0:02:58]} 4.
e3 {[%clk 0:02:56.4]} 4... g6 {[%clk 0:02:58.2]} 5. Bb2 {[%clk 0:02:56.4]} 5...
Bg7 {[%clk 0:02:57.4]} 6. Be2 {[%clk 0:02:56.8]} 6... O-O {[%clk 0:02:56.5]} 7.
O-O {[%clk 0:02:57.1]} 7... Bf5 {[%clk 0:02:56]} 8. d3 {[%clk 0:02:53.8]} 8...
Nbd7 {[%clk 0:02:52.1]} 9. cxd5 {[%clk 0:02:52.8]} 9... cxd5 {[%clk 0:02:51.8]}
10. Nd4 {[%clk 0:02:38]} 10... Re8 {[%clk 0:02:50.3]} 11. Nxf5 {[%clk
0:02:34.6]} 11... gxf5 {[%clk 0:02:51.2]} 12. Nd2 {[%clk 0:02:34.4]} 12... e6
{[%clk 0:02:49.6]} 13. b4 {[%clk 0:02:27.3]} 13... Rc8 {[%clk 0:02:46.4]} 14.
Qa4 {[%clk 0:02:20.8]} 14... a6 {[%clk 0:02:41.4]} 15. Rac1 {[%clk 0:02:19.1]}
15... Nb6 {[%clk 0:02:40.6]} 16. Qb3 {[%clk 0:02:18.4]} 16... Qd7 {[%clk
0:02:39.5]} 17. Nf3 {[%clk 0:02:12.2]} 17... Qa4 {[%clk 0:02:31.1]} 18. Bd4
{[%clk 0:01:29.7]} 18... Qxb3 {[%clk 0:02:22.4]} 19. axb3 {[%clk 0:01:30.6]}
19... Nfd7 {[%clk 0:02:22.1]} 20. Bxg7 {[%clk 0:01:14.3]} 20... Kxg7 {[%clk
0:02:21.8]} 21. Nd4 {[%clk 0:01:15.2]} 21... Kf6 {[%clk 0:02:15.4]} 22. f4
{[%clk 0:01:15]} 22... Ke7 {[%clk 0:02:12.4]} 23. Kf2 {[%clk 0:01:09.6]} 23...
Rxc1 {[%clk 0:02:11.7]} 24. Rxc1 {[%clk 0:01:08.6]} 24... Rc8 {[%clk 0:02:12.2]}
25. Rxc8 {[%clk 0:01:08.5]} 25... Nxc8 {[%clk 0:02:13.1]} 26. b5 {[%clk
0:01:06.2]} 26... a5 {[%clk 0:02:11.1]} 27. Nf3 {[%clk 0:01:01.4]} 27... f6
{[%clk 0:02:02.3]} 28. d4 {[%clk 0:01:01.1]} 28... Kd6 {[%clk 0:02:00.1]} 29.
Ke1 {[%clk 0:00:59.1]} 29... Kc7 {[%clk 0:01:59]} 30. Kd2 {[%clk 0:00:59.1]}
30... Nd6 {[%clk 0:01:58.6]} 31. Kc2 {[%clk 0:00:51.7]} 31... Kb6 {[%clk
0:01:57.5]} 32. Nd2 {[%clk 0:00:29.2]} 32... Nxb5 {[%clk 0:01:55.1]} 33. Nf1
{[%clk 0:00:30.1]} 33... Nd6 {[%clk 0:01:33.2]} 34. Ng3 {[%clk 0:00:31]} 34...
Ne4 {[%clk 0:01:32.4]} 35. Nh5 {[%clk 0:00:30.9]} 35... Kc7 {[%clk 0:01:26.1]}
36. g4 {[%clk 0:00:27.5]} 36... fxg4 {[%clk 0:01:22.5]} 37. Bxg4 {[%clk
0:00:28.4]} 37... f5 {[%clk 0:01:22.9]} 38. Be2 {[%clk 0:00:25.6]} 38... Ndf6
{[%clk 0:01:19]} 39. Ng7 {[%clk 0:00:25.2]} 39... Kd7 {[%clk 0:01:17]} 40. h3
{[%clk 0:00:24.5]} 40... Ke7 {[%clk 0:01:16.9]} 41. Nh5 {[%clk 0:00:22.7]} 41...
Nxh5 {[%clk 0:01:16.1]} 42. Bxh5 {[%clk 0:00:23.6]} 42... Nf6 {[%clk 0:01:13.9]}
43. Be2 {[%clk 0:00:23.1]} 43... Kd6 {[%clk 0:01:14.1]} 44. b4 {[%clk
0:00:22.3]} 44... axb4 {[%clk 0:01:11.4]} 45. Kb3 {[%clk 0:00:23.2]} 45... Kc7
{[%clk 0:01:08.5]} 46. Kxb4 {[%clk 0:00:23.4]} 46... Ne8 {[%clk 0:01:08.5]} 47.
Bh5 {[%clk 0:00:22.9]} 47... Nd6 {[%clk 0:01:08.2]} 48. Kc5 {[%clk 0:00:22.8]}
48... b6+ {[%clk 0:01:08]} 49. Kb4 {[%clk 0:00:23]} 49... Nc4 {[%clk 0:01:07.7]}
50. Bf7 {[%clk 0:00:19.9]} 50... Kd6 {[%clk 0:01:07.6]} 51. Bg8 {[%clk
0:00:19.8]} 51... h6 {[%clk 0:01:07.5]} 52. Kb5 {[%clk 0:00:19.7]} 52... Nxe3
{[%clk 0:01:07.6]} 53. Kxb6 {[%clk 0:00:19.7]} 53... Ng2 {[%clk 0:01:07.7]} 0-1

[Event "*** Titled Tuesday Blitz"]
[Site "Chess.com"]
[Date "2021.04.20"]
[Round "10"]
[White "Mikhail_Golubev"]
[Black "frenchpin"]
[Result "1-0"]
[WhiteElo "2573"]
[BlackElo "2425"]
[TimeControl "180+1"]
[EndTime "11:54:45 PDT"]
[Termination "Mikhail_Golubev won by resignation"]

1. e4 {[%clk 0:03:00.9]} 1... e6 {[%clk 0:03:00.4]} 2. d4 {[%clk 0:03:00.5]}
2... d5 {[%clk 0:03:00.9]} 3. Nc3 {[%clk 0:03:01]} 3... Bb4 {[%clk 0:03:01.2]}
4. e5 {[%clk 0:03:01.1]} 4... c5 {[%clk 0:03:01.8]} 5. a3 {[%clk 0:03:01]} 5...
Bxc3+ {[%clk 0:03:02.3]} 6. bxc3 {[%clk 0:03:01.2]} 6... Qa5 {[%clk 0:03:02.9]}
7. Bd2 {[%clk 0:03:00.4]} 7... Qa4 {[%clk 0:03:03.4]} 8. Qg4 {[%clk 0:02:57.7]}
8... g6 {[%clk 0:03:02.8]} 9. Qd1 {[%clk 0:02:50.8]} 9... b6 {[%clk 0:03:02.7]}
10. h4 {[%clk 0:02:41.1]} 10... h6 {[%clk 0:02:52.6]} 11. Bd3 {[%clk 0:02:30.4]}
11... Ba6 {[%clk 0:02:51.2]} 12. Nf3 {[%clk 0:02:30]} 12... Nc6 {[%clk 0:02:43]}
13. O-O {[%clk 0:02:16.7]} 13... Nge7 {[%clk 0:02:41.6]} 14. dxc5 {[%clk
0:01:50]} 14... bxc5 {[%clk 0:02:37.2]} 15. Be3 {[%clk 0:01:49.4]} 15... Bxd3
{[%clk 0:02:04.9]} 16. cxd3 {[%clk 0:01:49]} 16... Qa5 {[%clk 0:01:43.1]} 17.
Qc1 {[%clk 0:01:40.6]} 17... Nf5 {[%clk 0:01:40.9]} 18. Bd2 {[%clk 0:01:40.6]}
18... h5 {[%clk 0:01:19.4]} 19. c4 {[%clk 0:01:37.5]} 19... Qa4 {[%clk
0:01:19.1]} 20. cxd5 {[%clk 0:01:37.5]} 20... exd5 {[%clk 0:01:18.6]} 21. Qxc5
{[%clk 0:01:35.2]} 21... Nce7 {[%clk 0:01:13.5]} 22. Bg5 {[%clk 0:01:10.3]}
22... Rc8 {[%clk 0:01:10.3]} 23. Qb4 {[%clk 0:01:09.8]} 23... Qd7 {[%clk
0:01:01.4]} 24. Bf6 {[%clk 0:01:07.4]} 24... O-O {[%clk 0:00:58.8]} 25. Bxe7
{[%clk 0:00:56.6]} 25... Nxe7 {[%clk 0:00:50.8]} 26. Rfe1 {[%clk 0:00:54.9]}
26... Nc6 {[%clk 0:00:47.5]} 27. Qf4 {[%clk 0:00:52.6]} 27... Rfe8 {[%clk
0:00:41.4]} 28. Qh6 {[%clk 0:00:45.9]} 28... Qf5 {[%clk 0:00:06.9]} 29. Ng5
{[%clk 0:00:43]} 29... Rxe5 {[%clk 0:00:07]} 30. d4 {[%clk 0:00:30.2]} 30...
Rxe1+ {[%clk 0:00:02.4]} 31. Rxe1 {[%clk 0:00:29.2]} 1-0

[Event "*** Titled Tuesday Blitz"]
[Site "Chess.com"]
[Date "2021.04.20"]
[Round "10"]
[White "secretsuperstar7"]
[Black "not_najdorfs_player"]
[Result "0-1"]
[WhiteElo "2227"]
[BlackElo "2357"]
[TimeControl "180+1"]
[EndTime "11:54:47 PDT"]
[Termination "not_najdorfs_player won by checkmate"]

1. d4 {[%clk 0:03:00.9]} 1... g6 {[%clk 0:02:57.4]} 2. c4 {[%clk 0:02:52.7]}
2... d6 {[%clk 0:02:54.7]} 3. Nc3 {[%clk 0:02:51.7]} 3... Bg7 {[%clk 0:02:53.4]}
4. e4 {[%clk 0:02:41.9]} 4... c6 {[%clk 0:02:52.5]} 5. Nf3 {[%clk 0:02:40.1]}
5... a5 {[%clk 0:02:46.6]} 6. Be2 {[%clk 0:02:33.1]} 6... Na6 {[%clk 0:02:46.6]}
7. O-O {[%clk 0:02:19.1]} 7... h6 {[%clk 0:02:30.9]} 8. Be3 {[%clk 0:02:07.1]}
8... e5 {[%clk 0:02:26.3]} 9. a3 {[%clk 0:01:56.3]} 9... f5 {[%clk 0:02:12.3]}
10. exf5 {[%clk 0:01:49.8]} 10... Bxf5 {[%clk 0:02:08.7]} 11. dxe5 {[%clk
0:01:40.8]} 11... dxe5 {[%clk 0:02:03.9]} 12. Qb3 {[%clk 0:01:39.1]} 12... Qe7
{[%clk 0:01:59.4]} 13. Na4 {[%clk 0:01:25.1]} 13... Nf6 {[%clk 0:01:57.6]} 14.
Nb6 {[%clk 0:01:19.2]} 14... Rd8 {[%clk 0:01:57.2]} 15. Rad1 {[%clk 0:01:17.7]}
15... O-O {[%clk 0:01:56.9]} 16. c5+ {[%clk 0:01:12.4]} 16... Kh7 {[%clk
0:01:52.9]} 17. Qc4 {[%clk 0:01:01.3]} 17... Nd5 {[%clk 0:01:45.2]} 18. Nxd5
{[%clk 0:00:59.9]} 18... cxd5 {[%clk 0:01:46.1]} 19. Qh4 {[%clk 0:00:30.5]}
19... Qxh4 {[%clk 0:01:43.1]} 20. Nxh4 {[%clk 0:00:31.4]} 20... d4 {[%clk
0:01:42.7]} 21. Bd2 {[%clk 0:00:26.8]} 21... Nxc5 {[%clk 0:01:27.3]} 22. Bxa5
{[%clk 0:00:19.6]} 22... Rc8 {[%clk 0:01:27.8]} 23. Nxf5 {[%clk 0:00:17.8]}
23... gxf5 {[%clk 0:01:27.8]} 24. Bc4 {[%clk 0:00:11.7]} 24... Na4 {[%clk
0:01:19.9]} 25. b3 {[%clk 0:00:09.1]} 25... Nc5 {[%clk 0:01:19.2]} 26. Bb4
{[%clk 0:00:08.8]} 26... e4 {[%clk 0:01:17.7]} 27. Bd5 {[%clk 0:00:08.3]} 27...
d3 {[%clk 0:01:16]} 28. Rc1 {[%clk 0:00:07.9]} 28... Na6 {[%clk 0:01:07.4]} 29.
Bxf8 {[%clk 0:00:06.8]} 29... Rxf8 {[%clk 0:01:06.7]} 30. b4 {[%clk 0:00:04.7]}
30... Bb2 {[%clk 0:00:56.8]} 31. Rc4 {[%clk 0:00:04.5]} 31... Bxa3 {[%clk
0:00:54.8]} 32. Bxb7 {[%clk 0:00:04.6]} 32... Nxb4 {[%clk 0:00:54.5]} 33. Rc7+
{[%clk 0:00:04.7]} 33... Kg6 {[%clk 0:00:54.1]} 34. Ra1 {[%clk 0:00:03.1]} 34...
d2 {[%clk 0:00:50.6]} 35. Rd7 {[%clk 0:00:02.7]} 35... Nd3 {[%clk 0:00:50.1]}
36. Rxd3 {[%clk 0:00:01.5]} 36... exd3 {[%clk 0:00:50]} 37. Bf3 {[%clk
0:00:02.1]} 37... Bc1 {[%clk 0:00:49.5]} 38. Ra7 {[%clk 0:00:02.1]} 38... Re8
{[%clk 0:00:47.6]} 39. Rd7 {[%clk 0:00:02.7]} 39... Re1# {[%clk 0:00:47.1]} 0-1